bitfinex/quotes_ETHUSD_20230404
["timestamp","ask_amount","ask_price","bid_price","bid_amount"]
[1680649226342,1.14,1869.0,1868.8,0.24079]
[1680649226546,1.14,1869.0,1868.8,0.72238]
[1680649227693,1.14,1869.0,1868.8,0.24079]
[1680649227887,0.23500001,1868.9,1868.8,0.24079]
[1680649228264,0.23500001,1868.9,1868.8,0.72238]
[1680649230199,1.38100001,1868.9,1868.7,0.5648]
[1680649230353,1.14,1868.8,1868.7,0.5648]
[1680649230701,2.281,1868.8,1868.7,0.5648]
[1680649231883,2.29,1868.8,1868.7,0.5648]
[1680649232062,1.15,1868.8,1868.7,0.5648]
[1680649232267,1.276,1868.8,1868.7,0.5648]
[1680649235097,1.276,1868.8,1868.7,0.324]
[1680649235780,2.422,1868.8,1868.5,0.24083]
[1680649235953,1.267,1868.8,1868.7,0.273]
[1680649236295,1.26368947,1868.8,1868.7,0.273]
[1680649239404,1.26368947,1868.8,1868.6,0.24081]
[1680649239550,1.144,1868.7,1868.6,0.24081]
[1680649239901,1.271,1868.7,1868.6,0.24081]
[1680649240199,1.271,1868.7,1868.5,0.24082]
[1680649241403,1.271,1868.7,1868.5,0.72248]
[1680649242095,0.127,1868.7,1868.5,0.72248]
[1680649242297,1.14,1868.8,1868.5,0.72248]
[1680649249601,1.14,1868.8,1868.5,1.01348]
[1680649252688,1.146,1868.7,1868.5,1.01348]
[1680649254927,1.146,1868.6,1868.5,0.291]
[1680649255396,8.73818004,1868.6,1868.5,0.291]
[1680649255600,12.40155843,1868.6,1868.1,0.24088]
[1680649255798,12.40155843,1868.6,1868.5,0.285]
[1680649255799,9.18560004,1868.6,1868.5,0.285]
[1680649256117,14.25558276,1868.6,1868.5,0.285]
[1680649256679,7.14297285,1868.6,1868.5,0.285]
[1680649256887,5.99697285,1868.6,1868.5,0.285]
[1680649258210,11.89055285,1868.6,1868.5,0.285]
[1680649258434,11.62297285,1868.6,1868.5,0.285]
[1680649258632,11.89055285,1868.6,1868.5,0.285]
[1680649258993,11.62297285,1868.6,1868.5,0.285]
[1680649259803,11.63197285,1868.6,1868.5,0.285]
[1680649260092,11.62297285,1868.6,1868.5,0.285]
[1680649260737,11.62094928,1868.6,1868.5,0.285]
[1680649260890,14.38897146,1868.6,1868.5,0.285]
[1680649267971,15.42171146,1868.6,1868.1,0.004]
[1680649268275,15.42171146,1868.6,1867.8,0.24692]
[1680649268276,1.146,1868.2,1867.8,0.24692]
[1680649268581,1.14,1868.1,1867.8,0.24492]
[1680649268743,1.14,1868.1,1867.8,0.24692]
[1680649268939,1.14,1868.1,1867.8,0.24092]
[1680649275336,1.14,1868.1,1867.8,0.2383558]
[1680649275535,0.114,1868.0,1867.8,0.2383558]
[1680649279745,0.114,1868.0,1867.5,4.9023]
[1680649280039,0.114,1868.0,1867.8,0.24092]
[1680649284675,0.647,1868.1,1867.5,4.92424169]
[1680649284861,0.647,1868.1,1867.8,0.24092]
[1680649287691,11.08101686,1868.2,1867.8,0.24092]
[1680649291274,11.08101686,1868.2,1867.8,0.72277]
[1680649296207,11.06896892,1868.2,1867.8,0.72277]
[1680649296498,1.10689689,1868.1,1867.8,0.72277]
[1680649301220,11.06896892,1868.2,1867.8,0.72277]
[1680649303129,11.07796892,1868.2,1867.8,0.72277]
[1680649303506,11.06896892,1868.2,1867.8,0.72277]
[1680649305423,11.07796892,1868.2,1867.8,0.72277]
[1680649305625,11.06896892,1868.2,1867.8,0.72277]
[1680649305839,13.21603581,1868.2,1867.8,0.72277]
[1680649306686,8.39202218,1868.1,1867.7,0.006]
[1680649307027,0.647,1867.8,1867.6,0.006]
[1680649307233,0.647,1867.8,1867.4,0.1]
[1680649307541,0.0647,1867.7,1867.5,0.24095]
[1680649307833,0.0647,1867.7,1867.5,0.24495]
[1680649307993,0.0647,1867.7,1867.5,0.004]
[1680649308192,0.0647,1867.7,1867.5,0.24096]
[1680649309800,0.647,1867.8,1867.5,0.72288]
[1680649310098,0.647,1867.8,1867.5,0.24096]
[1680649310305,0.647,1867.8,1867.5,0.72288]
[1680649311600,0.597,1867.8,1867.5,0.72288]
[1680649311773,0.597,1867.8,1867.5,0.24096]
[1680649323480,0.597,1867.8,1867.4,0.8229]
[1680649323830,0.645,1867.7,1867.4,0.1]
[1680649324381,0.645,1867.7,1867.4,0.102]
[1680649325378,0.645,1867.7,1867.4,0.1]
[1680649330290,0.60421,1867.7,1867.4,0.1]
[1680649330521,1.593101,1867.7,1867.4,0.1]
[1680649334807,7.219101,1867.7,1867.4,0.1]
[1680649335011,7.221101,1867.7,1867.4,0.1]
[1680649335734,7.230101,1867.7,1867.4,0.1]
[1680649336110,7.221101,1867.7,1867.4,0.1]
[1680649336512,0.7221101,1867.6,1867.4,0.1]
[1680649342007,1.3691101,1867.6,1867.4,0.1]
[1680649345351,6.914,1867.5,1867.4,0.1]
[1680649345505,10.59675218,1867.5,1867.4,0.1]
[1680649345840,11.13222218,1867.5,1867.4,0.1]
[1680649346044,21.86645541,1867.5,1867.4,0.1]
[1680649346217,24.86645541,1867.5,1867.4,0.1]
[1680649346848,25.09645541,1867.5,1867.4,0.1]
[1680649347805,28.95445541,1867.5,1867.4,0.1]
[1680649348708,29.47966506,1867.5,1867.4,0.1]
[1680649351606,29.48347856,1867.5,1867.4,0.1]
[1680649351820,29.48647856,1867.5,1867.4,0.1]
[1680649352923,27.39046506,1867.5,1867.4,0.1]
[1680649353132,27.65819506,1867.5,1867.4,0.1]
[1680649353350,27.64919506,1867.5,1867.4,0.1]
[1680649357550,27.65519506,1867.5,1867.4,0.1]
[1680649357755,27.64919506,1867.5,1867.4,0.1]
[1680649358054,27.00519506,1867.5,1867.4,0.1]
[1680649359049,20.79917288,1867.5,1867.4,0.1]
[1680649359247,19.48453965,1867.5,1867.4,0.1]
[1680649360127,20.02000965,1867.5,1867.4,0.1]
[1680649361912,20.02600965,1867.5,1867.4,0.1]
[1680649362158,20.02900965,1867.5,1867.4,0.1]
[1680649362330,22.18192637,1867.5,1867.4,0.1]
[1680649363526,16.55292637,1867.5,1867.4,0.1]
[1680649363733,24.93894855,1867.5,1867.4,0.1]
[1680649379870,19.31294855,1867.5,1867.4,0.1]
[1680649382079,15.98056183,1867.5,1867.4,0.1]
[1680649383252,15.98956183,1867.5,1867.4,0.1]
[1680649383682,17.16303183,1867.5,1867.4,0.1]
[1680649383979,17.39303183,1867.5,1867.4,0.1]
[1680649389185,18.04003183,1867.5,1867.4,0.1]
[1680649389388,20.49324377,1867.5,1867.4,0.1]
[1680649392082,26.57576494,1867.5,1867.4,0.1]
[1680649395279,25.18141226,1867.5,1867.4,0.1]
[1680649395690,26.57574603,1867.5,1867.4,0.1]
[1680649397063,26.58474603,1867.5,1867.4,0.1]
[1680649397584,26.57574603,1867.5,1867.4,0.1]
[1680649402690,25.92874603,1867.5,1867.4,0.1]
[1680649402994,24.53441226,1867.5,1867.4,0.1]
[1680649403528,24.54341226,1867.5,1867.4,0.1]
[1680649403650,24.53441226,1867.5,1867.4,0.1]
[1680649406801,24.54341226,1867.5,1867.4,0.1]
[1680649407201,24.53441226,1867.5,1867.4,0.1]
[1680649409833,21.32441226,1867.5,1867.4,0.1]
[1680649412110,20.68041226,1867.5,1867.4,0.1]
[1680649412306,28.42436212,1867.5,1867.4,0.1]
[1680649412506,28.42436212,1867.5,1867.3,0.09772063]
[1680649412507,28.70408324,1867.5,1867.3,0.09772063]
[1680649412841,21.46304107,1867.4,1867.3,0.09772063]
[1680649412999,24.73362484,1867.4,1867.3,0.09772063]
[1680649414544,24.73324931,1867.4,1867.3,0.09772063]
[1680649419487,29.73084931,1867.4,1867.3,0.09772063]
[1680649419784,30.28967078,1867.4,1867.3,0.09772063]
[1680649420083,29.73084931,1867.4,1867.3,0.09772063]
[1680649420254,29.45075803,1867.4,1867.3,0.09772063]
[1680649422181,28.43484931,1867.4,1867.3,0.09772063]
[1680649422334,28.99350959,1867.4,1867.3,0.09772063]
[1680649422977,28.1545999,1867.4,1867.3,0.09772063]
[1680649424583,25.04226613,1867.4,1867.3,0.09772063]
[1680649424769,21.29676613,1867.4,1867.3,0.09772063]
[1680649424970,19.8085374,1867.4,1867.3,0.09772063]
[1680649425641,8.17091522,1867.4,1867.3,0.09772063]
[1680649425873,5.89575,1867.4,1867.3,0.09772063]
[1680649426978,6.43125,1867.4,1867.3,0.09772063]
[1680649427182,9.43125,1867.4,1867.3,0.09772063]
[1680649427775,3.80525,1867.4,1867.3,0.09772063]
[1680649428099,3.80325,1867.4,1867.3,0.09772063]
[1680649428291,5.47864319,1867.4,1867.3,0.09772063]
[1680649428588,5.48064319,1867.4,1867.3,0.09772063]
[1680649429454,13.87266537,1867.4,1867.3,0.09772063]
[1680649429656,16.46166537,1867.4,1867.3,0.09772063]
[1680649429975,17.52046389,1867.4,1867.3,0.09772063]
[1680649430160,18.45014897,1867.4,1867.3,0.09772063]
[1680649430359,19.00880925,1867.4,1867.3,0.09772063]
[1680649431921,6.00394171,1867.4,1867.3,0.09772063]
[1680649432053,4.06079852,1867.4,1867.3,0.09772063]
[1680649432254,4.05879852,1867.4,1867.3,0.09772063]
[1680649433904,4.32654852,1867.4,1867.3,0.09772063]
[1680649435895,4.05879852,1867.4,1867.3,0.09772063]
[1680649436405,0.52720965,1867.5,1867.4,0.00376139]
[1680649436571,0.52520965,1867.5,1867.4,0.00376139]
[1680649436770,0.39876744,1867.6,1867.4,0.65376139]
[1680649437899,3.13104744,1867.6,1867.4,0.65376139]
[1680649438295,3.39876744,1867.6,1867.4,0.65376139]
[1680649438683,3.93854339,1867.6,1867.4,0.65376139]
[1680649438872,3.67082339,1867.6,1867.4,0.65376139]
[1680649439990,3.93854339,1867.6,1867.4,0.65376139]
[1680649441335,3.93458586,1867.6,1867.4,0.65376139]
[1680649454112,13.81830663,1867.6,1867.4,0.65376139]
[1680649454310,13.82030663,1867.6,1867.4,0.65376139]
[1680649455657,9.53302218,1867.5,1867.4,0.65376139]
[1680649455854,10.56822218,1867.5,1867.4,0.65376139]
[1680649456021,10.56822218,1867.5,1867.4,0.00376139]
[1680649456352,20.92586029,1867.5,1867.4,0.00376139]
[1680649458149,20.93486029,1867.5,1867.4,0.00376139]
[1680649459549,21.86448383,1867.5,1867.4,0.00376139]
[1680649461428,22.42014411,1867.5,1867.4,0.00376139]
[1680649461633,22.41414411,1867.5,1867.4,0.00376139]
[1680649462133,23.80862622,1867.5,1867.4,0.00376139]
[1680649462352,27.01862622,1867.5,1867.4,0.00376139]
[1680649462530,27.29887563,1867.5,1867.4,0.00376139]
[1680649464651,27.29887563,1867.5,1867.4,0.00090919]
[1680649466251,27.30787563,1867.5,1867.4,0.00090919]
[1680649468089,27.29887563,1867.5,1867.4,0.00090919]
[1680649471297,24.08887563,1867.5,1867.4,0.00090919]
[1680649471492,24.64791115,1867.5,1867.4,0.00090919]
[1680649472440,24.08887563,1867.5,1867.4,0.00090919]
[1680649472654,24.64790689,1867.5,1867.4,0.00090919]
[1680649473479,23.8089972,1867.5,1867.4,0.00090919]
[1680649474205,27.85790689,1867.5,1867.4,0.00090919]
[1680649474386,27.29887563,1867.5,1867.4,0.00090919]
[1680649487457,0.0018098,1867.4,1867.3,0.09772063]
[1680649487660,20.99648467,1867.4,1867.3,0.09772063]
[1680649487855,22.39296678,1867.4,1867.3,0.09772063]
[1680649488324,23.23187647,1867.4,1867.3,0.09772063]
[1680649489767,23.24087647,1867.4,1867.3,0.09772063]
[1680649489963,22.67316586,1867.4,1867.3,0.09772063]
[1680649490319,23.23185287,1867.4,1867.3,0.09772063]
[1680649490624,22.67316586,1867.4,1867.3,0.09772063]
[1680649490830,23.23185043,1867.4,1867.3,0.09772063]
[1680649491250,22.67316586,1867.4,1867.3,0.09772063]
[1680649492637,22.67316586,1867.4,1867.3,0.00072063]
[1680649492839,24.10030343,1867.4,1867.3,0.00072063]
[1680649493761,22.95930343,1867.4,1867.3,0.00072063]
[1680649493956,23.79739359,1867.4,1867.3,0.00072063]
[1680649494159,22.67834633,1867.4,1867.3,0.00072063]
[1680649495961,22.68734633,1867.4,1867.3,0.00072063]
[1680649496170,22.67834633,1867.4,1867.3,0.00072063]
[1680649496663,22.40291148,1867.4,1867.3,0.00072063]
[1680649496870,23.79739359,1867.4,1867.3,0.00072063]
[1680649497225,22.95930343,1867.4,1867.3,0.00072063]
[1680649499174,22.96830343,1867.4,1867.3,0.00072063]
[1680649499469,22.95930343,1867.4,1867.3,0.00072063]
[1680649502383,23.10430343,1867.4,1867.3,0.00072063]
[1680649503439,24.50124068,1867.4,1867.3,0.00072063]
[1680649503640,23.10430343,1867.4,1867.3,0.00072063]
[1680649504138,24.50124068,1867.4,1867.3,0.00072063]
[1680649504568,23.10430343,1867.4,1867.3,0.00072063]
[1680649504772,24.50124068,1867.4,1867.3,0.00072063]
[1680649506823,25.56782713,1867.4,1867.3,0.00072063]
[1680649506973,24.44877987,1867.4,1867.3,0.00072063]
[1680649513627,0.00269244,1867.3,1866.8,0.006]
[1680649513933,0.55931207,1867.1,1866.8,0.002]
[1680649514225,0.80341,1867.0,1866.8,0.006]
[1680649516647,0.80341,1867.0,1866.7,4.90825109]
[1680649516815,0.80341,1867.0,1866.7,4.91425109]
[1680649519243,1.32660817,1867.0,1866.7,4.91425109]
[1680649524176,1.32660817,1867.0,1866.7,4.90825109]
[1680649524776,1.32660817,1867.0,1866.7,4.91425109]
[1680649525147,1.32660817,1867.0,1866.7,5.09525109]
[1680649525469,1.32660817,1867.0,1866.7,5.09725109]
[1680649526430,1.32660817,1867.0,1866.7,5.09125109]
[1680649527478,1.32660817,1867.0,1866.7,5.09725109]
[1680649527981,6.95260817,1867.0,1866.7,5.09725109]
[1680649528185,3.0,1866.9,1866.7,4.91625109]
[1680649528345,0.26783,1866.8,1866.7,4.91425109]
[1680649528679,0.26783,1866.8,1866.7,4.8923]
[1680649528887,0.26783,1866.8,1866.7,0.006]
[1680649529267,0.26783,1866.8,1866.6,0.106]
[1680649530973,0.26783,1866.8,1866.6,0.104]
[1680649531178,0.26783,1866.8,1866.6,0.106]
[1680649534780,0.26502017,1866.8,1866.6,0.102]
[1680649535080,0.26502017,1866.8,1866.6,0.1]
[1680649544047,3.26783,1866.9,1866.6,0.1]
[1680649549716,4.31651694,1866.9,1866.6,0.1]
[1680649558055,4.31651694,1866.9,1866.7,0.258]
[1680649558935,6.45410303,1866.9,1866.7,0.258]
[1680649559147,6.45610303,1866.9,1866.7,0.258]
[1680649569681,6.46510303,1866.9,1866.7,0.258]
[1680649571386,6.45610303,1866.9,1866.7,0.258]
[1680649573352,7.0154151,1866.9,1866.7,0.258]
[1680649573977,1.34554151,1866.8,1866.7,0.258]
[1680649574182,1.61337151,1866.8,1866.6,0.1]
[1680649574565,2.14904151,1866.8,1866.6,0.1]
[1680649577904,1.61337151,1866.8,1866.6,0.1]
[1680649582065,0.96937151,1866.8,1866.6,0.1]
[1680649584880,1.50504151,1866.8,1866.6,0.1]
[1680649590512,0.15050415,1866.7,1866.6,0.1]
[1680649590677,0.95405415,1866.7,1866.6,0.1]
[1680649591212,2.02545415,1866.7,1866.6,0.1]
[1680649595080,5.02545415,1866.7,1866.6,0.1]
[1680649595423,5.02745415,1866.7,1866.6,0.1]
[1680649596530,5.03645415,1866.7,1866.6,0.1]
[1680649596896,5.02745415,1866.7,1866.6,0.1]
[1680649602132,5.67045415,1866.7,1866.6,0.1]
[1680649603699,14.06247633,1866.7,1866.6,0.1]
[1680649604025,14.29247633,1866.7,1866.6,0.1]
[1680649608854,0.1,1866.6,1865.9,0.002]
[1680649609013,11.60202218,1866.0,1865.6,0.1]
[1680649609215,1.87579,1865.9,1865.6,0.1]
[1680649609516,0.80398,1865.7,1865.5,0.044168]
[1680649609838,0.643,1865.6,1865.5,0.044168]
[1680649610143,0.91101,1865.6,1865.5,0.044168]
[1680649610455,1.44703,1865.6,1865.5,0.044168]
[1680649612115,0.80403,1865.6,1865.5,0.044168]
[1680649614849,0.26801,1865.6,1865.5,0.044168]
[1680649615560,4.16999758,1865.7,1865.5,0.044168]
[1680649615700,0.657,1865.8,1865.5,0.044168]
[1680649615701,0.011,1865.8,1865.5,0.044168]
[1680649615906,0.009,1865.9,1865.5,0.044168]
[1680649616120,3.26796,1866.0,1865.5,0.044168]
[1680649616322,3.26796,1866.0,1865.5,0.06613321]
[1680649616619,0.009,1866.0,1865.5,0.06613321]
[1680649616815,0.009,1866.0,1865.5,0.30735321]
[1680649616816,0.26795,1866.0,1865.5,0.30735321]
[1680649617047,0.26795,1866.0,1865.5,0.06613321]
[1680649618164,3.26795,1866.0,1865.5,0.06613321]
[1680649618365,3.27695,1866.0,1865.5,0.06613321]
[1680649620722,3.81291203,1866.0,1865.5,0.06613321]
[1680649622349,3.94459846,1866.0,1865.5,0.06613321]
[1680649627082,3.93559846,1866.0,1865.5,0.06613321]
[1680649627692,3.94459846,1866.0,1865.5,0.06613321]
[1680649629602,3.93565477,1866.0,1865.5,0.06613321]
[1680649629790,3.93265477,1866.0,1865.5,0.06613321]
[1680649630306,9.04002218,1865.9,1865.5,0.044168]
[1680649630509,1.44798,1865.7,1865.5,0.044168]
[1680649630662,1.44798,1865.7,1865.5,0.050168]
[1680649631668,1.44798,1865.7,1865.5,0.044168]
[1680649634706,0.91199,1865.7,1865.5,0.044168]
[1680649635005,1.421785,1865.7,1865.5,0.044168]
[1680649635195,1.153795,1865.7,1865.5,0.044168]
[1680649637911,3.0,1865.9,1865.5,0.285388]
[1680649640291,3.0,1865.9,1865.5,0.37496944]
[1680649640492,3.0,1865.9,1865.5,0.044168]
[1680649641774,3.26796,1865.9,1865.5,0.044168]
[1680649642107,3.80389,1865.9,1865.5,0.044168]
[1680649642412,3.26796,1865.9,1865.5,0.044168]
[1680649644943,3.0,1865.9,1865.5,0.044168]
[1680649645320,4.18994085,1865.9,1865.5,0.044168]
[1680649645746,14.13648085,1865.9,1865.5,0.044168]
[1680649645901,14.13848085,1865.9,1865.5,0.044168]
[1680649646104,14.40644085,1865.9,1865.5,0.044168]
[1680649646411,14.13848085,1865.9,1865.5,0.044168]
[1680649646621,1.41384809,1865.8,1865.5,0.044168]
[1680649651001,2.32482809,1865.8,1865.5,0.044168]
[1680649651537,2.76602218,1865.7,1865.5,0.044168]
[1680649651782,0.648,1865.6,1865.5,0.044168]
[1680649653824,0.64406106,1865.6,1865.5,0.044168]
[1680649654144,1.45571938,1865.6,1865.5,0.044168]
[1680649655162,0.64406106,1865.6,1865.5,0.044168]
[1680649655335,4.7065,1865.7,1865.5,0.044168]
[1680649655665,4.7045,1865.7,1865.5,0.044168]
[1680649657371,4.7045,1865.7,1865.5,0.285388]
[1680649657733,4.7045,1865.7,1865.5,0.044168]
[1680649658032,4.7045,1865.7,1865.5,0.04166868]
[1680649658669,5.68173481,1865.7,1865.5,0.04166868]
[1680649658850,14.08475699,1865.7,1865.5,0.04166868]
[1680649659167,14.07575699,1865.7,1865.5,0.04166868]
[1680649660493,2.76602218,1865.6,1865.5,0.04166868]
[1680649660627,6.41002218,1865.6,1865.5,0.04166868]
[1680649660972,8.47880688,1865.6,1865.5,0.04166868]
[1680649661142,8.21079688,1865.6,1865.5,0.04166868]
[1680649661868,5.4447747,1865.6,1865.5,0.04166868]
[1680649664233,3.646,1865.6,1865.5,0.04166868]
[1680649664532,3.644,1865.6,1865.5,0.04166868]
[1680649672107,3.0,1865.6,1865.5,0.04166868]
[1680649673889,4.7065,1865.7,1865.5,0.28288868]
[1680649674259,0.002,1865.8,1865.5,0.85186355]
[1680649674375,0.002,1865.9,1865.5,0.85186355]
[1680649674572,1.09785427,1866.1,1865.5,0.85186355]
[1680649674772,16.07527967,1866.2,1865.6,0.08518636]
[1680649674995,16.07527967,1866.2,1865.7,0.24119]
[1680649674996,18.57338185,1866.2,1865.7,0.24119]
[1680649675711,3.0,1866.1,1865.7,0.24119]
[1680649675919,3.0,1866.1,1865.6,0.34835039]
[1680649677119,3.0,1866.1,1865.6,0.83076039]
[1680649677473,3.0,1866.1,1865.6,0.34835039]
[1680649677675,5.08217266,1866.1,1865.6,0.26316403]
[1680649678015,3.011,1866.1,1865.6,0.26316403]
[1680649678196,3.0,1866.1,1865.6,0.26316403]
[1680649680028,2.99629829,1866.1,1865.6,0.26916403]
[1680649680421,2.99629829,1866.1,1865.6,0.75157403]
[1680649680724,2.99629829,1866.1,1865.6,1.76878179]
[1680649680923,2.99629829,1866.1,1865.6,1.28637179]
[1680649681613,2.99629829,1866.1,1865.6,1.28037179]
[1680649681810,2.99629829,1866.1,1865.6,1.28637179]
[1680649685836,2.99629829,1866.1,1865.6,0.26916403]
[1680649686043,3.00529829,1866.1,1865.6,0.21316403]
[1680649692111,3.65329829,1866.1,1865.6,0.21316403]
[1680649694235,3.92122829,1866.1,1865.5,9.57516868]
[1680649694607,0.648,1865.7,1865.5,0.04366868]
[1680649694806,0.7774,1865.7,1865.5,0.04166868]
[1680649695037,9.16942218,1865.7,1865.5,0.04166868]
[1680649695225,9.17142218,1865.7,1865.5,0.04166868]
[1680649695800,4.05802218,1865.6,1865.5,0.04166868]
[1680649696000,11.57195745,1865.6,1865.5,0.04166868]
[1680649696315,11.26793745,1865.6,1865.5,0.04166868]
[1680649696635,14.27693745,1865.6,1865.5,0.04166868]
[1680649696942,14.81295745,1865.6,1865.5,0.04166868]
[1680649697145,19.80765745,1865.6,1865.5,0.04166868]
[1680649697331,22.21362745,1865.6,1865.5,0.04166868]
[1680649697649,19.26263745,1865.6,1865.5,0.04166868]
[1680649697947,22.47263745,1865.6,1865.5,0.04166868]
[1680649698312,23.00432942,1865.6,1865.5,0.04166868]
[1680649699848,23.01332942,1865.6,1865.5,0.04166868]
[1680649702324,22.74531942,1865.6,1865.5,0.04166868]
[1680649702951,23.01332942,1865.6,1865.5,0.04166868]
[1680649704475,23.00432942,1865.6,1865.5,0.04166868]
[1680649704782,23.01332942,1865.6,1865.5,0.04166868]
[1680649705889,23.54934942,1865.6,1865.5,0.04166868]
[1680649706388,23.00432942,1865.6,1865.5,0.04166868]
[1680649706604,23.00432942,1865.6,1864.8,0.002]
[1680649706605,5.626,1865.1,1864.8,0.002]
[1680649706900,11.423,1864.9,1864.6,0.1]
[1680649707059,2.99602218,1864.8,1864.6,0.1]
[1680649707261,0.011,1864.9,1864.6,0.35927107]
[1680649707594,0.009,1865.0,1864.6,1.08327107]
[1680649707756,10.31310603,1865.3,1864.6,1.08327107]
[1680649707961,3.0,1865.2,1864.6,0.60060107]
[1680649708216,3.009,1865.2,1864.7,0.06006011]
[1680649708581,3.0,1865.2,1864.7,0.06006011]
[1680649708952,3.26806,1865.2,1864.7,0.06006011]
[1680649709154,3.0,1865.2,1864.7,0.30138011]
[1680649709381,3.26807,1865.2,1864.7,0.06006011]
[1680649710168,0.646,1865.1,1864.7,0.06006011]
[1680649710372,0.91408,1865.1,1864.7,0.06006011]
[1680649712072,0.648,1865.0,1864.7,0.06006011]
[1680649712304,1.41408,1865.1,1864.7,0.06006011]
[1680649713864,1.41408,1865.1,1864.7,0.01006011]
[1680649715812,10.34226218,1865.1,1864.6,0.1]
[1680649716010,10.35326218,1865.1,1864.6,0.1]
[1680649716714,9.81710218,1865.1,1864.6,0.1]
[1680649717010,9.81710218,1865.1,1864.6,0.86852607]
[1680649718663,9.81710218,1865.1,1864.6,1.10985607]
[1680649719084,9.81710218,1865.1,1864.6,0.86852607]
[1680649720814,9.81710218,1865.1,1864.6,0.81852607]
[1680649721113,9.81710218,1865.1,1864.6,0.05]
[1680649722698,8.39202218,1865.0,1864.6,0.05]
[1680649723016,0.25196405,1864.9,1864.6,0.05]
[1680649723308,3.01798623,1864.9,1864.6,0.05]
[1680649723517,8.92109623,1864.9,1864.6,0.05]
[1680649723718,0.89210962,1864.8,1864.6,0.05]
[1680649724622,1.16022962,1864.8,1864.6,0.05]
[1680649724920,0.89210962,1864.8,1864.6,0.05]
[1680649725730,1.16022962,1864.8,1864.6,0.05]
[1680649726019,9.77302218,1864.7,1864.6,0.05]
[1680649726220,11.25287236,1864.7,1864.6,0.05]
[1680649726714,11.52100236,1864.7,1864.6,0.05]
[1680649727427,12.05727236,1864.7,1864.6,0.05]
[1680649728268,3.71,1864.6,1864.5,2.49271066]
[1680649728627,18.23885442,1864.6,1864.5,0.13754405]
[1680649728783,32.57545442,1864.6,1864.5,0.13754405]
[1680649730069,32.03915442,1864.6,1864.5,0.13754405]
[1680649730500,0.002,1864.6,1864.5,0.13754405]
[1680649730701,0.26809,1865.0,1864.5,0.13754405]
[1680649730905,0.80260204,1865.1,1864.5,0.13754405]
[1680649731178,9.4144,1865.2,1864.5,0.86158405]
[1680649731499,17.80642218,1865.2,1864.6,0.32747841]
[1680649731701,17.80642218,1865.2,1864.6,0.81014841]
[1680649732297,18.07448218,1865.2,1864.6,0.81014841]
[1680649732498,17.82838623,1865.2,1864.6,0.81014841]
[1680649732914,20.26555146,1865.2,1864.6,0.81014841]
[1680649733733,14.63955146,1865.2,1864.6,0.81014841]
[1680649733935,12.20238623,1865.2,1864.6,0.81014841]
[1680649734301,0.02396405,1865.2,1864.6,1.77549841]
[1680649734508,3.0,1865.2,1864.6,1.77549841]
[1680649734714,3.43600603,1865.3,1864.6,1.77549841]
[1680649734915,3.42500603,1865.3,1864.8,0.7239]
[1680649736134,0.42500603,1865.3,1864.8,0.7239]
[1680649737249,0.42500603,1865.3,1864.8,0.2413]
[1680649739114,0.42500603,1865.3,1864.8,0.72392]
[1680649740139,0.03096405,1865.4,1864.8,0.69384001]
[1680649740448,0.02196405,1865.4,1864.9,0.069384]
[1680649740649,0.02196405,1865.4,1864.9,0.310664]
[1680649740856,0.03096405,1865.4,1864.9,0.310664]
[1680649741761,0.29900405,1865.4,1864.9,0.069384]
[1680649742917,2.79698623,1865.4,1864.9,0.24129]
[1680649743150,0.02196405,1865.4,1864.9,0.24129]
[1680649743634,0.02196405,1865.4,1864.9,0.19129]
[1680649744418,0.29000405,1865.4,1864.9,0.19129]
[1680649744639,0.29000405,1865.4,1864.8,5.2091]
[1680649744963,0.29000405,1865.4,1864.8,6.76221698]
[1680649745416,2.76602218,1865.3,1864.8,5.2091]
[1680649745616,0.03296405,1865.4,1864.8,5.2091]
[1680649745865,0.26805,1865.3,1864.8,5.2091]
[1680649746707,0.80415,1865.3,1864.8,5.2091]
[1680649746908,0.88676141,1865.3,1864.8,5.2091]
[1680649748883,3.11668359,1865.3,1864.8,5.2091]
[1680649749819,3.65278359,1865.3,1864.8,5.2091]
[1680649750486,8.66009218,1865.2,1864.7,0.008]
[1680649750693,0.23,1865.1,1864.6,0.24133]
[1680649750892,2.76602218,1865.0,1864.6,0.24133]
[1680649753134,2.76602218,1865.0,1864.5,15.80718405]
[1680649753381,0.02196405,1864.9,1864.5,5.22774405]
[1680649753520,2.76602218,1864.8,1864.5,0.03754405]
[1680649753910,2.76602218,1864.8,1864.5,0.27888405]
[1680649754432,2.76602218,1864.8,1864.5,0.03754405]
[1680649754988,8.39202218,1864.8,1864.5,0.03754405]
[1680649755190,0.83920222,1864.7,1864.5,0.03754405]
[1680649771477,3.6052244,1864.7,1864.5,0.03754405]
[1680649772572,3.6052244,1864.7,1864.4,0.22890405]
[1680649772953,3.6052244,1864.7,1864.4,0.24136]
[1680649776436,2.76602218,1864.7,1864.4,0.24136]
[1680649777945,15.6981,1864.8,1864.4,0.24136]
[1680649778145,18.46412218,1864.8,1864.4,0.24136]
[1680649778876,0.002,1864.8,1864.4,1.68953]
[1680649779179,0.54004795,1865.0,1864.4,1.68953]
[1680649779339,2.76602218,1865.0,1864.4,1.868483]
[1680649786389,1.149,1864.8,1864.3,0.1]
[1680649786684,2.76602218,1864.7,1864.3,0.1]
[1680649787181,2.78798623,1864.7,1864.3,0.1]
[1680649787699,0.23,1864.6,1864.3,0.1]
[1680649787900,2.99602218,1864.6,1864.3,0.1]
[1680649788107,4.1285708,1864.6,1864.3,0.1]
[1680649788268,9.7545708,1864.6,1864.3,0.1]
[1680649788470,9.04002218,1864.5,1864.3,0.1]
[1680649788698,9.31020218,1864.5,1864.3,0.1]
[1680649788900,1.96556022,1864.4,1864.3,0.1]
[1680649789106,11.6555824,1864.4,1864.3,0.1]
[1680649789284,11.6665824,1864.4,1864.3,0.1]
[1680649789486,14.8675824,1864.4,1864.3,0.1]
[1680649789659,17.8675824,1864.4,1864.3,0.1]
[1680649790113,19.1605824,1864.4,1864.3,0.1]
[1680649790316,3.21,1864.2,1863.6,0.102]
[1680649790461,17.67863218,1864.1,1863.6,0.1]